bitfinex/quotes_SOLUSD_20240821
["timestamp","ask_amount","ask_price","bid_price","bid_amount"]
[1724249146250,0.8493177,141.7,141.61,8.47368134]
[1724249146441,0.8493177,141.7,141.61,7.0616]
[1724249146640,7.0587,141.67,141.59,7.0624]
[1724249147041,7.0587,141.67,141.6,8.47409238]
[1724249147249,7.058,141.69,141.61,1.41199266]
[1724249147467,8.73345402,141.68,141.61,7.0615]
[1724249147628,7.0588,141.67,141.58,17.6568]
[1724249147956,7.0588,141.67,141.6,7.062]
[1724249148889,22.52447172,141.7,141.54,17.6622]
[1724249148890,1.67515402,141.66,141.54,17.6622]
[1724249149033,7.0605,141.64,141.54,17.6622]
[1724249149238,7.18519,141.65,141.57,7.0636]
[1724249149443,7.0601,141.64,141.57,7.0636]
[1724249149654,7.0601,141.64,141.58,1.41144416]
[1724249149864,7.0601,141.64,141.57,7.0636]
[1724249149865,62.645,141.69,141.59,1.412431]
[1724249150149,7.0597,141.65,141.58,7.063]
[1724249150384,2.52447172,141.7,141.58,7.0626]
[1724249150876,7.0598,141.65,141.57,24.7222]
[1724249151074,7.0601,141.64,141.57,24.7221]
[1724249151250,7.0596,141.65,141.58,8.47543822]
[1724249151443,20.16757172,141.7,141.59,7.0624]
[1724249151665,20.16757172,141.7,141.57,17.6586]
[1724249151666,7.0597,141.65,141.57,24.7218]
[1724249151875,7.0591,141.67,141.58,1.41165888]
[1724249152077,27.0581,141.69,141.6,7.062]
[1724249152385,7.9069177,141.7,141.62,7.0611]
[1724249152541,7.9069177,141.7,141.63,8.47218089]
[1724249153254,7.0577,141.69,141.6,68.1653]
[1724249153462,7.9065177,141.7,141.63,7.0605]
[1724249153773,7.0576,141.69,141.62,7.0611]
[1724249154071,7.0576,141.69,141.63,1.41186228]
[1724249154574,7.0582,141.68,141.61,7.0615]
[1724249154781,7.0582,141.68,141.62,1.41198772]
[1724249155067,7.0576,141.69,141.62,7.0611]
[1724249155269,7.0576,141.69,141.62,7.87322234]
[1724249155508,0.8493177,141.7,141.63,17.6513]
[1724249155654,0.8493177,141.7,141.64,0.83093097]
[1724249155975,0.8493177,141.7,141.63,17.6513]
[1724249155976,0.8493177,141.7,141.66,7.059]
[1724249156179,0.8493177,141.7,141.65,18.47847298]
[1724249156180,0.8493177,141.7,141.65,24.7075]
[1724249156386,0.8493177,141.7,141.66,0.74654185]
[1724249156567,0.8493177,141.7,141.68,17.6452]
[1724249156880,0.8493177,141.7,141.69,7.0576]
[1724249157306,0.8493177,141.7,141.69,57.5676]
[1724249157542,32.3577,141.85,141.7,37.6417]
[1724249157724,7.0517,141.81,141.74,7.0551]
[1724249158009,7.0522,141.8,141.73,17.6389]
[1724249158192,7.0532,141.78,141.68,77.8071]
[1724249158401,1.67515402,141.79,141.69,17.6432]
[1724249158402,7.0526,141.79,141.69,17.6432]
[1724249158764,7.0521,141.81,141.69,17.6432]
[1724249158988,2.52447172,141.84,141.72,17.6402]
[1724249159300,7.0526,141.8,141.72,24.6958]
[1724249159463,7.0521,141.81,141.72,17.6402]
[1724249159972,7.0522,141.8,141.73,7.0556]
[1724249160531,7.8999177,141.84,141.75,17.6365]
[1724249160729,7.8999177,141.84,141.78,20.0]
[1724249160730,0.8493177,141.84,141.78,20.0]
[1724249161007,0.8493177,141.84,141.82,7.0507]
[1724249161309,0.8493177,141.84,141.81,17.6287]
[1724249161606,0.8493177,141.84,141.82,28.58601967]
[1724249161787,17.6013,142.04,141.87,50.51]
[1724249161968,1.67515402,142.03,141.89,17.6186]
[1724249162322,17.6013,142.04,141.89,17.6186]
[1724249162323,0.3493177,141.98,141.89,17.6186]
[1724249162494,7.3927177,141.98,141.89,17.6186]
[1724249162677,0.3493177,141.98,141.89,17.6186]
[1724249163014,0.3493177,141.98,141.85,17.6238]
[1724249163493,7.0458,141.93,141.85,24.673]
[1724249163838,7.0449,141.95,141.85,17.6238]
[1724249163859,0.3493177,141.98,141.86,20.0]
[1724249164470,0.3493177,141.98,141.88,17.6198]
[1724249164507,0.3493177,141.98,141.91,17.6158]
[1724249165392,0.3493177,141.98,141.87,17.6216]
[1724249165425,0.3493177,141.98,141.83,20.0]
[1724249165494,0.3493177,141.98,141.84,7.05]
[1724249165509,0.3493177,141.98,141.84,20.0]
[1724249165520,0.3493177,141.98,141.86,17.622]
[1724249165863,0.3493177,141.98,141.87,7.0483]
[1724249165864,2.02447172,141.98,141.87,7.0483]
[1724249165878,7.046,141.93,141.84,7.05]
[1724249166036,7.7587,141.96,141.81,17.6283]
[1724249166195,7.0451,141.95,141.84,17.6245]
[1724249166398,7.7587,141.96,141.84,37.6245]
[1724249166588,18.5099,141.97,141.84,37.6245]
[1724249166905,7.3928177,141.98,141.87,17.6208]
[1724249167153,0.3493177,141.98,141.87,17.6208]
[1724249167607,0.3493177,141.98,141.87,24.6691]
[1724249167806,7.044,141.97,141.88,7.0481]
[1724249168040,7.0458,141.93,141.83,17.6265]
[1724249168184,0.3493177,141.98,141.83,20.0]
[1724249168526,0.3493177,141.98,141.82,50.51]
[1724249168719,45.3493177,141.98,141.83,20.0]
[1724249168900,7.0443,141.96,141.86,17.6221]
[1724249169209,0.3493177,141.98,141.86,7.0487]
[1724249169516,0.3493177,141.98,141.85,17.6238]
[1724249169884,0.3493177,141.98,141.85,24.6734]
[1724249170082,1.67515402,141.97,141.83,7.0502]
[1724249170393,17.9580177,141.98,141.89,7.0476]
[1724249170394,7.3929177,141.98,141.89,7.0476]
[1724249170591,0.3493177,141.98,141.89,7.0476]
[1724249170802,2.02447172,141.98,141.87,24.669]
[1724249171006,7.0441,141.97,141.87,17.6207]
[1724249171200,7.3928177,141.98,141.87,17.6207]
[1724249171417,7.0444,141.96,141.87,17.6207]
[1724249171584,0.3493177,141.98,141.87,17.6207]
[1724249171792,7.0437,141.97,141.9,7.0471]
[1724249171999,7.0437,141.97,141.91,1.40898028]
[1724249172192,7.0437,141.97,141.9,7.0471]
[1724249172193,7.3925177,141.98,141.9,17.6171]
[1724249172700,7.0447,141.95,141.89,1.40897582]
[1724249172888,7.0447,141.95,141.88,7.0477]
[1724249173115,7.0441,141.97,141.89,8.45676179]
[1724249173380,7.0441,141.97,141.86,37.6221]
[1724249173381,8.71935402,141.96,141.88,7.0481]
[1724249173517,0.3493177,141.98,141.84,7.0501]
[1724249173518,7.0463,141.92,141.84,7.0501]
[1724249173708,1.67515402,141.91,141.85,7.0496]
[1724249173903,0.12549,141.97,141.86,7.049]
[1724249174104,0.3493177,141.98,141.85,17.6238]
[1724249174815,2.02447172,141.98,141.88,17.6203]
[1724249175002,0.3493177,141.98,141.88,37.6203]
[1724249175328,0.3493177,141.98,141.88,17.6203]
[1724249175627,0.3493177,141.98,141.91,17.6166]
[1724249176317,0.3493177,141.98,141.87,17.6208]
[1724249176500,0.3493177,141.98,141.9,17.618]
[1724249176695,0.3493177,141.98,141.91,7.0466]
[1724249176696,7.3925177,141.98,141.91,7.0466]
[1724249176905,0.3493177,141.98,141.9,17.618]
[1724249177704,7.3925177,141.98,141.91,7.0466]
[1724249177908,1.67515402,142.0,141.9,17.618]
[1724249178118,7.0438,141.97,141.9,24.6651]
[1724249178428,20.0,142.0,141.91,7.0466]
[1724249178602,7.7228,142.01,141.9,37.618]
[1724249178798,7.385,142.07,141.94,70.51]
[1724249179107,7.0393,142.06,141.99,7.0427]
[1724249179331,7.0393,142.06,142.0,1.40655106]
[1724249179510,7.0393,142.06,141.98,7.0431]
[1724249179731,7.0393,142.06,141.99,1.40806877]
[1724249180028,7.0409,142.03,141.96,17.6105]
[1724249180335,7.0403,142.04,141.92,20.0]
[1724249180711,1.67515402,142.07,141.95,17.6114]
[1724249180910,7.0418,142.01,141.91,17.6162]
[1724249181238,8.71745402,142.0,141.91,17.6162]
[1724249181422,14.7935,142.01,141.92,7.0462]
[1724249181612,14.7935,142.01,141.93,7.0456]
[1724249181813,25.2856,142.06,141.94,1.37876469]
[1724249182003,7.0411,142.03,141.95,7.0446]
[1724249182205,25.2856,142.06,141.95,7.0446]
[1724249182206,7.6869,142.06,141.96,21.40843596]
[1724249182409,7.6869,142.06,141.97,17.6085]
[1724249182708,7.6869,142.06,141.98,0.49850286]
[1724249182910,7.6869,142.06,141.96,37.61]
[1724249183112,7.0402,142.05,141.96,17.61]
[1724249183315,7.0402,142.05,141.97,1.40765975]
[1724249183514,7.0387,142.08,142.0,7.0422]
[1724249183835,18.2973,142.09,142.01,1.40726325]
[1724249184029,18.2973,142.09,142.0,7.0417]
[1724249184030,7.0382,142.08,142.0,7.0417]
[1724249184336,18.2973,142.09,141.99,17.6068]
[1724249184514,7.0398,142.05,141.99,17.6068]
[1724249184715,18.2973,142.09,141.97,7.0437]
[1724249185033,7.0398,142.05,141.98,7.043]
[1724249185236,1.67515402,142.04,141.95,17.6107]
[1724249185403,37.596,142.08,141.95,17.6107]
[1724249185404,0.12549,142.07,141.95,17.6107]
[1724249185737,1.80064402,142.07,141.95,17.6107]
[1724249186029,7.0423,142.0,141.93,7.0452]
[1724249187143,7.041,142.03,141.96,7.0442]
[1724249187350,7.0403,142.04,141.97,7.0436]
[1724249187656,7.36449969,142.08,141.97,17.6092]
[1724249187830,7.1963,142.11,142.0,37.6055]
[1724249188032,7.1963,142.11,142.0,17.6055]
[1724249188232,0.8493177,142.13,142.03,37.6016]
[1724249188447,7.8851177,142.13,142.06,7.0392]
[1724249188645,7.0363,142.12,142.03,37.6016]
[1724249188849,0.8493177,142.13,142.03,17.6016]
[1724249189457,7.0368,142.11,142.04,7.0402]
[1724249189654,0.8493177,142.13,142.05,39.0050272]
[1724249189857,0.8493177,142.13,142.08,7.0381]
[1724249190038,0.8493177,142.13,142.05,133.1083]
[1724249190238,0.8493177,142.13,142.08,7.0382]
[1724249190846,0.8493177,142.13,142.09,1.40712414]
[1724249191158,0.8493177,142.13,142.08,24.6339]
[1724249191620,0.8493177,142.13,142.08,17.5957]
[1724249191756,2.52447172,142.13,142.05,17.5992]
[1724249191964,7.0379,142.09,142.02,7.0412]
[1724249192254,0.8493177,142.13,141.93,17.6133]
[1724249192255,7.0418,142.01,141.93,17.6133]
[1724249192456,1.67515402,142.07,141.93,17.6133]
[1724249192774,7.0397,142.06,141.97,37.6083]
[1724249192940,7.0407,142.04,141.98,1.21442199]
[1724249193143,7.0447,141.96,141.9,17.6168]
[1724249193337,17.6055,142.01,141.9,24.6635]
[1724249193338,1.67515402,142.0,141.9,24.6635]
[1724249193661,45.25098,142.08,141.88,27.2187]
[1724249193662,17.6009,142.04,141.92,17.6144]
[1724249193869,45.25098,142.08,141.93,21.40708734]
[1724249193870,62.84768,142.08,141.93,21.40708734]
[1724249194158,62.84768,142.08,141.92,17.6144]
[1724249194159,7.0428,141.99,141.92,17.6144]
[1724249194369,7.0437,141.97,141.89,24.6663]
[1724249194840,7.3002,142.01,141.9,1.40889425]
[1724249195060,7.0428,141.99,141.89,20.0]
[1724249195272,7.3002,142.01,141.92,17.6155]
[1724249195567,7.0407,142.03,141.97,7.0436]
[1724249195861,7.0403,142.04,141.97,7.0436]
[1724249196065,1.67515402,142.03,141.95,17.6114]
[1724249196232,7.0412,142.02,141.95,24.6561]
[1724249196536,17.5932,142.11,142.0,7.0421]
[1724249196737,7.0391,142.07,142.0,7.0421]
[1724249196937,24.8711,142.11,141.99,17.6058]
[1724249197161,7.0409,142.03,141.96,24.6544]
[1724249197341,7.0402,142.05,141.96,17.6104]
[1724249197540,7.2779,142.11,141.98,17.6068]
[1724249198080,7.0392,142.07,142.0,7.0422]
[1724249198091,7.0392,142.07,142.01,1.40726618]
[1724249198269,7.2779,142.11,142.02,1.40716709]
[1724249198473,7.0392,142.07,142.0,17.6046]
[1724249198640,7.0387,142.08,142.01,7.0417]
[1724249198832,1.67515402,142.08,141.97,17.609]
[1724249199054,7.0408,142.03,141.97,17.609]
[1724249199255,7.0407,142.04,141.96,7.0437]
[1724249199557,1.67515402,142.03,141.94,17.6127]
[1724249199768,7.0421,142.01,141.94,24.6578]
[1724249199940,18.0872,142.01,141.91,17.6167]
[1724249200135,7.0447,141.95,141.88,17.6203]
[1724249200333,1.67515402,141.94,141.85,17.6241]
[1724249200558,7.0458,141.93,141.86,7.0491]
[1724249200760,19.28665402,141.96,141.85,17.6241]
[1724249200960,7.0468,141.91,141.85,24.6737]
[1724249201169,7.0452,141.95,141.85,17.6241]
[1724249201460,7.0437,141.97,141.9,7.0472]
[1724249201660,7.0443,141.96,141.89,7.0477]
[1724249202166,17.6063,142.0,141.89,7.0477]
[1724249202167,1.67515402,142.03,141.95,20.0]
[1724249202467,19.6707,142.12,141.91,70.51]
[1724249202670,1.67515402,142.11,141.92,20.0]
[1724249202844,19.6707,142.12,141.97,24.6528]
[1724249203038,8.97215402,142.11,141.95,7.0442]
[1724249203236,19.26855402,142.1,141.96,17.6094]
[1724249203661,8.97215402,142.11,141.95,20.12549]
[1724249203867,8.97215402,142.11,141.95,0.12549]
[1724249203868,1.67515402,142.1,141.95,0.12549]
[1724249204088,44.22733304,142.1,141.9,17.22644839]
[1724249204320,7.042,142.01,141.94,17.6119]
[1724249204447,7.0424,142.0,141.94,17.6119]
[1724249204636,7.9276,142.05,141.91,17.6164]
[1724249204836,7.0427,141.99,141.92,7.0459]
[1724249205046,7.0422,142.0,141.91,17.6164]
[1724249205344,7.9276,142.05,141.9,50.51]
[1724249205548,1.67515402,142.06,141.97,20.0]
[1724249205847,15.24667902,142.1,142.0,24.6472]
[1724249205848,7.0383,142.08,142.0,24.6472]
[1724249206073,7.8818,142.1,141.97,24.653]
[1724249206074,1.67515402,142.09,141.97,24.653]
[1724249206374,14.9191,142.1,142.03,7.0407]
[1724249206568,14.9191,142.1,142.01,17.6032]
[1724249206569,7.8818,142.1,142.01,17.6032]
[1724249206741,7.8818,142.1,142.01,24.6449]
[1724249206941,9.55695402,142.1,142.01,17.6032]
[1724249207162,9.55695402,142.1,141.99,7.0426]
[1724249207163,7.0393,142.06,141.99,7.0426]
[1724249207464,7.0397,142.05,141.98,24.6509]
[1724249207781,7.0411,142.03,141.96,7.0438]
[1724249208074,19.27055402,142.09,141.97,17.6092]
[1724249208249,7.0398,142.05,141.98,7.0431]
[1724249208569,7.0397,142.06,141.97,17.6092]
[1724249209091,7.8818,142.1,141.99,17.6058]
[1724249209375,7.0384,142.08,142.0,1.40800136]
[1724249209580,7.0378,142.09,142.02,7.0412]
[1724249210076,7.8818,142.1,142.01,24.6449]
[1724249210358,7.0393,142.06,141.98,19.01408974]
[1724249210485,19.26995402,142.09,141.98,24.6508]
[1724249210662,20.0,142.08,141.98,17.6077]
[1724249210964,7.0398,142.05,141.98,24.6508]
[1724249211823,7.0427,142.0,141.93,7.0453]
[1724249212159,7.0429,141.99,141.93,7.0456]
[1724249212362,1.67515402,142.03,141.92,17.6154]
[1724249212363,8.71835402,141.98,141.92,17.6154]
[1724249212578,7.3332,142.0,141.89,17.6188]
[1724249212771,7.3332,142.0,141.89,24.666]
[1724249212772,7.0443,141.96,141.89,24.666]
[1724249213078,21.67515402,141.99,141.9,7.047]
[1724249213255,7.0448,141.95,141.89,17.6188]
[1724249213884,1.67515402,141.94,141.87,7.0484]
[1724249214004,7.0451,141.95,141.88,7.0481]
[1724249214159,1.67515402,141.98,141.87,17.6205]
[1724249214355,1.80064402,141.97,141.83,17.6255]
[1724249214576,21.41549,141.96,141.83,24.6757]
[1724249214795,88.09064402,141.95,141.83,17.6255]
[1724249214956,7.0471,141.91,141.83,17.6255]
[1724249215283,7.0482,141.88,141.81,7.0516]
[1724249215455,1.67515402,141.9,141.81,7.0516]
[1724249215456,17.905,141.92,141.81,7.0516]
[1724249215656,7.0483,141.88,141.79,17.6306]
[1724249215850,1.67515402,141.89,141.79,17.6306]
[1724249216083,7.0487,141.87,141.8,7.0517]
[1724249216258,42.4761,142.05,141.85,70.51]
[1724249216608,42.4761,142.05,141.88,50.51]
[1724249216609,7.0438,141.97,141.88,50.51]
[1724249216909,1.67515402,142.03,141.9,17.6177]
[1724249217148,17.6063,142.0,141.88,7.048]
[1724249217232,7.0449,141.95,141.86,7.0487]
[1724249217367,7.0452,141.94,141.86,7.0487]
[1724249217973,7.0459,141.93,141.86,7.0487]
[1724249218292,7.0463,141.92,141.85,17.624]
[1724249218469,7.2468,141.94,141.83,7.0502]
[1724249218664,14.292,141.94,141.84,17.6244]
[1724249218871,7.0458,141.93,141.85,7.0494]
[1724249219068,7.0458,141.93,141.86,7.0489]
[1724249219278,7.0462,141.92,141.85,7.0496]
[1724249219570,7.0472,141.9,141.82,7.051]
[1724249219824,8.72295402,141.89,141.82,7.051]
[1724249220169,7.0478,141.89,141.82,7.051]
[1724249220404,7.0478,141.89,141.8,17.6295]
[1724249220405,1.67515402,141.88,141.8,17.6295]
[1724249220698,0.12549,141.93,141.78,7.0531]
[1724249220699,7.0497,141.85,141.78,7.0531]
[1724249220900,8.72535402,141.84,141.77,7.0536]
[1724249221064,8.72535402,141.84,141.76,24.6883]
[1724249221065,8.85985402,141.84,141.76,24.6883]
[1724249221290,8.85985402,141.84,141.72,20.0]
[1724249221291,7.1847,141.84,141.79,17.6314]
[1724249221483,19.2703,141.87,141.82,7.0511]
[1724249221692,7.3589,141.89,141.85,7.0495]
[1724249221883,7.3589,141.89,141.83,7.0502]
[1724249222191,7.3589,141.89,141.85,17.6242]
[1724249222365,25.8825,141.92,141.85,24.6738]
[1724249222573,18.8362,141.92,141.81,17.6283]
[1724249222771,18.8362,141.92,141.85,7.0496]
[1724249223228,7.0467,141.91,141.81,17.6283]
[1724249223348,18.8362,141.92,141.84,17.6253]
[1724249223475,18.8362,141.92,141.88,7.048]
[1724249224093,1.67515402,141.91,141.87,17.6217]
[1724249224329,1.67515402,141.91,141.85,7.0496]
[1724249224506,18.8362,141.92,141.86,7.0491]
[1724249224938,14.2007,141.93,141.86,17.6229]
[1724249224939,7.155,141.93,141.86,17.6229]
[1724249225110,18.4175,141.97,141.92,7.0461]
[1724249225409,18.8044,142.03,141.9,50.51]
[1724249225616,7.0413,142.02,141.94,7.045]
[1724249225929,33.1744,142.03,141.94,7.0451]
[1724249226513,7.0413,142.02,141.94,7.0451]
[1724249226526,26.1332,142.03,141.92,17.6151]
[1724249226852,33.1739,142.03,141.92,17.6151]
[1724249226860,7.0413,142.02,141.92,17.6151]
[1724249227008,26.1332,142.03,141.95,17.6113]
[1724249227380,26.1332,142.03,141.99,7.0425]
[1724249227704,7.33261775,142.07,141.99,7.0425]
[1724249228033,7.0393,142.06,141.97,7.0433]
[1724249228241,1.67515402,142.06,141.95,17.6113]
[1724249228419,26.54,142.08,141.91,37.6162]
[1724249228420,1.67515402,142.05,141.91,37.6162]
[1724249228717,1.67515402,142.07,141.94,17.6125]
[1724249229209,7.0407,142.03,141.95,7.0444]
[1724249229507,7.0401,142.05,141.94,17.6125]
[1724249229734,7.0391,142.07,141.98,7.043]
[1724249229875,7.0391,142.07,141.97,17.6087]
[1724249229876,7.0389,142.07,141.97,17.6087]
[1724249230082,1.67515402,142.06,141.94,50.51]
[1724249230281,7.0403,142.04,141.97,7.0436]
[1724249230602,7.0403,142.04,141.96,24.6545]
[1724249231172,7.0409,142.03,141.96,17.6103]
[1724249231189,7.0412,142.02,141.94,7.0452]
[1724249231428,26.54,142.08,141.92,20.0]
[1724249231603,7.0405,142.04,141.97,7.0436]
[1724249232216,26.54,142.08,141.98,17.6077]
[1724249232506,1.67515402,142.07,141.94,50.51]
[1724249232716,7.0413,142.02,141.94,24.6571]
[1724249233011,17.5969,142.07,141.94,17.6123]
[1724249233314,7.0427,141.99,141.92,7.0461]
[1724249233620,1.67515402,141.98,141.9,24.6635]
[1724249233815,7.0438,141.97,141.9,24.6635]
[1724249234121,7.0443,141.96,141.9,17.6168]
[1724249234289,14.6527,141.97,141.9,24.6638]
[1724249234894,7.0442,141.96,141.9,17.6168]
[1724249235202,1.67515402,141.95,141.87,24.6698]
[1724249235404,1.67515402,141.95,141.85,7.0492]
[1724249235923,7.0467,141.92,141.85,7.0493]
[1724249236213,7.0463,141.92,141.84,17.6252]
[1724249236384,7.0457,141.93,141.84,17.6252]
[1724249236584,7.0452,141.94,141.86,17.622]
[1724249237108,20.0,141.96,141.86,17.622]
[1724249237109,7.0457,141.93,141.86,17.622]
[1724249237235,7.0457,141.93,141.87,7.99831966]
[1724249237387,7.0457,141.93,141.87,7.0486]
[1724249237804,7.0457,141.93,141.86,24.6711]
[1724249238014,8.72135402,141.92,141.86,17.622]
[1724249238221,7.0458,141.93,141.86,24.6711]
[1724249238588,20.0,141.96,141.86,17.622]
[1724249238589,7.0462,141.92,141.86,17.622]
[1724249239098,7.0456,141.94,141.86,17.622]
[1724249239383,7.0457,141.93,141.87,7.0485]
[1724249239589,8.72135402,141.92,141.86,17.622]
[1724249240109,1.67515402,141.92,141.84,7.0501]
[1724249240407,8.72135402,141.92,141.83,24.6768]
[1724249240604,1.67515402,141.91,141.83,24.6768]
[1724249240980,7.0462,141.92,141.85,7.0492]
[1724249241183,1.67515402,141.95,141.83,17.6263]
[1724249241412,7.0468,141.91,141.84,7.0501]
[1724249241718,1.67515402,141.9,141.83,17.6263]
[1724249241892,7.0483,141.88,141.81,7.0516]
[1724249242260,7.0492,141.86,141.8,17.6301]
[1724249242388,1.67515402,141.85,141.8,17.6301]
[1724249242710,7.0493,141.86,141.8,24.6821]
[1724249243017,1.67515402,141.84,141.8,24.6821]
[1724249243484,7.6174,141.87,141.8,17.6301]
[1724249243682,7.6174,141.87,141.81,7.0515]
[1724249243882,14.6663,141.87,141.8,17.6301]
[1724249244110,14.6663,141.87,141.8,24.682]
[1724249244496,7.6174,141.87,141.8,17.6301]
[1724249244915,18.5699,141.89,141.83,7.0502]
[1724249245112,1.67515402,141.88,141.82,17.6269]
[1724249245409,18.5699,141.89,141.82,17.6269]
[1724249245587,18.5699,141.89,141.84,7.05]
[1724249245787,1.67515402,141.88,141.83,7.0506]
[1724249246030,18.5699,141.89,141.84,7.0501]
[1724249246354,1.67515402,141.88,141.82,24.6776]
[1724249246606,25.6176,141.89,141.82,24.6776]
[1724249247118,18.5699,141.89,141.85,7.0495]
[1724249247298,7.7284,141.92,141.84,17.6246]
[1724249248122,14.7747,141.92,141.86,7.0491]
[1724249248322,7.7284,141.92,141.87,7.0484]
[1724249248530,18.4701,141.94,141.87,1.40359374]
[1724249248733,1.67515402,141.93,141.88,7.0481]
[1724249248891,25.5153,141.94,141.86,17.6222]
[1724249249096,18.4701,141.94,141.88,17.6197]
[1724249249614,18.4701,141.94,141.88,24.6678]
[1724249249792,18.4701,141.94,141.92,7.0458]
[1724249249992,7.5526,141.97,141.91,24.663]
[1724249250410,7.5526,141.97,141.92,7.70518024]
[1724249250811,7.5526,141.97,141.92,7.046]
[1724249251011,7.5526,141.97,141.92,7.69269318]
[1724249251327,7.5526,141.97,141.92,7.0461]
[1724249251815,7.5526,141.97,141.91,17.6164]
[1724249252023,14.5964,141.97,141.91,17.6164]
[1724249252234,1.67515402,141.96,141.88,17.6203]
[1724249252421,1.67515402,141.95,141.85,17.6238]
[1724249252729,7.0471,141.91,141.85,24.6734]
[1724249252890,1.67515402,141.9,141.85,24.6734]
[1724249254022,8.72285402,141.89,141.82,17.6277]
[1724249254289,7.0473,141.9,141.82,17.6277]
[1724249254410,1.67515402,141.94,141.84,17.6242]
[1724249254784,7.0476,141.9,141.84,24.6741]
[1724249254929,7.0462,141.92,141.86,7.049]
[1724249255103,7.0458,141.93,141.86,8.45821243]
[1724249255499,21.67515402,141.94,141.84,17.6242]
[1724249255747,7.0472,141.9,141.84,24.6743]
[1724249255935,1.67515402,141.89,141.84,24.6743]
[1724249256227,1.67515402,141.88,141.84,17.6242]
[1724249256430,20.0,141.92,141.84,17.6242]
[1724249256630,20.0,141.94,141.84,17.6242]
[1724249257118,20.0,141.94,141.79,20.0]
[1724249257119,17.6163,141.92,141.81,7.0513]
[1724249257327,17.6163,141.92,141.81,7.95961857]
[1724249257328,7.0485,141.88,141.81,7.95961857]
[1724249257524,7.0485,141.88,141.82,7.0511]
[1724249257736,7.0487,141.87,141.81,0.90831857]
[1724249257945,17.6163,141.92,141.82,17.627]
[1724249258151,45.0,141.93,141.79,20.0]
[1724249258431,1.67515402,141.93,141.84,24.6746]
[1724249258735,66.17,141.94,141.84,17.6245]
[1724249258736,0.25098,141.92,141.84,17.6245]
[1724249258914,7.0478,141.89,141.83,7.0503]
[1724249259425,7.0482,141.88,141.81,24.6798]
[1724249259810,1.67515402,141.87,141.81,17.6286]
[1724249260146,7.0501,141.84,141.78,17.6324]
[1724249260335,7.0501,141.84,141.78,7.0531]
[1724249260336,1.67515402,141.83,141.78,7.0531]
[1724249260510,9.23925402,141.88,141.75,53.72]
[1724249260705,21.67515402,141.87,141.76,4.44136647]
[1724249261037,7.0498,141.85,141.79,17.6308]
[1724249261212,21.67515402,141.87,141.77,7.0536]
[1724249261213,8.72535402,141.84,141.77,7.0536]
[1724249261856,1.67515402,141.83,141.76,17.6351]
[1724249262212,20.0,141.87,141.76,17.6351]
[1724249262346,45.0,141.86,141.78,7.0531]
[1724249262525,20.0,141.85,141.78,7.0531]
[1724249262918,7.0496,141.86,141.78,17.632]
[1724249263115,1.67515402,141.87,141.78,17.632]
[1724249263320,0.12549,141.86,141.78,17.632]
[1724249263628,45.0,141.87,141.76,35.2699]
[1724249263828,7.049,141.87,141.8,7.0517]
[1724249264333,7.5641,141.88,141.81,1.40995714]
[1724249264545,7.5641,141.88,141.8,17.6293]
[1724249265091,7.5641,141.88,141.81,7.0512]
[1724249265304,7.0493,141.86,141.8,24.6814]
[1724249265437,7.0502,141.84,141.77,24.6872]
[1724249265743,7.0496,141.86,141.79,7.0526]
[1724249266158,7.0498,141.85,141.78,7.053]
[1724249266526,7.0492,141.86,141.8,7.0521]
[1724249267149,7.0498,141.85,141.79,7.0526]
[1724249267357,7.0492,141.86,141.8,7.0521]
[1724249267851,7.0488,141.87,141.81,7.0516]
[1724249268089,7.0488,141.87,141.8,7.0521]
[1724249268365,7.0494,141.86,141.8,7.0521]
[1724249268651,7.0494,141.86,141.79,17.6309]